[Event "*** SCC Grand Prix: Titled Tuesday Blitz"]
[Site "Chess.com"]
[Date "2020.09.29"]
[Round "10"]
[White "DarZay"]
[Black "dosto07"]
[Result "0-1"]
[WhiteElo "2102"]
[BlackElo "2297"]
[TimeControl "180+1"]
[EndTime "11:54:05 PDT"]
[Termination "dosto07 won by checkmate"]

1. e4 {[%clk 0:03:00]} 1... e5 {[%clk 0:02:59.2]} 2. Nf3 {[%clk 0:02:59.9]} 2...
Nc6 {[%clk 0:02:59.6]} 3. Bc4 {[%clk 0:02:59.4]} 3... Bc5 {[%clk 0:02:58.5]} 4.
c3 {[%clk 0:02:57.7]} 4... d6 {[%clk 0:02:57.8]} 5. d4 {[%clk 0:02:55.7]} 5...
exd4 {[%clk 0:02:57.1]} 6. cxd4 {[%clk 0:02:56]} 6... Bb6 {[%clk 0:02:57.6]} 7.
Ng5 {[%clk 0:02:47.6]} 7... Nh6 {[%clk 0:02:54]} 8. Nf3 {[%clk 0:02:41.7]} 8...
Qf6 {[%clk 0:02:37]} 9. Bg5 {[%clk 0:02:39.4]} 9... Qg6 {[%clk 0:02:36.9]} 10.
O-O {[%clk 0:02:25.6]} 10... Bg4 {[%clk 0:02:33.1]} 11. Bxh6 {[%clk 0:02:16.8]}
11... Qxh6 {[%clk 0:02:26.7]} 12. h3 {[%clk 0:02:11.4]} 12... Bxf3 {[%clk
0:02:22.3]} 13. Qxf3 {[%clk 0:02:11.2]} 13... O-O {[%clk 0:02:22.8]} 14. d5
{[%clk 0:02:00.7]} 14... Ne5 {[%clk 0:02:22.5]} 15. Qe2 {[%clk 0:02:00.6]} 15...
Rae8 {[%clk 0:02:10.3]} 16. Nd2 {[%clk 0:02:00.1]} 16... f5 {[%clk 0:02:06.9]}
17. Kh2 {[%clk 0:01:54.9]} 17... Qf4+ {[%clk 0:01:53.7]} 18. g3 {[%clk
0:01:53.2]} 18... Qxd2 {[%clk 0:01:51.2]} 19. Qxd2 {[%clk 0:01:40.1]} 19... Nf3+
{[%clk 0:01:50.7]} 20. Kg2 {[%clk 0:01:40.1]} 20... Nxd2 {[%clk 0:01:51.6]} 21.
Rfc1 {[%clk 0:01:39.6]} 21... Nxc4 {[%clk 0:01:51.1]} 22. Rxc4 {[%clk
0:01:39.5]} 22... fxe4 {[%clk 0:01:51.2]} 23. Rf1 {[%clk 0:01:39.6]} 23... e3
{[%clk 0:01:44.6]} 24. f4 {[%clk 0:01:38.5]} 24... e2 {[%clk 0:01:30.5]} 25. Re1
{[%clk 0:01:38.6]} 25... Re3 {[%clk 0:01:31]} 26. Rc2 {[%clk 0:01:34.5]} 26...
Rfe8 {[%clk 0:01:30]} 27. b4 {[%clk 0:01:34.6]} 27... a5 {[%clk 0:01:27.4]} 28.
a3 {[%clk 0:01:32.5]} 28... Rxa3 {[%clk 0:01:23.3]} 29. bxa5 {[%clk 0:01:32.5]}
29... Rxa5 {[%clk 0:01:18.5]} 30. Rcxe2 {[%clk 0:01:31.8]} 30... Rxe2+ {[%clk
0:01:18.3]} 31. Rxe2 {[%clk 0:01:32]} 31... Rxd5 {[%clk 0:01:18.9]} 32. Re8+
{[%clk 0:01:31.4]} 32... Kf7 {[%clk 0:01:18.7]} 33. Rb8 {[%clk 0:01:30.9]} 33...
Rd2+ {[%clk 0:01:07.9]} 34. Kf3 {[%clk 0:01:30.4]} 34... d5 {[%clk 0:01:06.6]}
35. Rxb7 {[%clk 0:01:30]} 35... h5 {[%clk 0:01:05.7]} 36. g4 {[%clk 0:01:25.4]}
36... Rf2+ {[%clk 0:01:01.6]} 37. Kg3 {[%clk 0:01:24.9]} 37... h4+ {[%clk
0:00:59.2]} 38. Kxh4 {[%clk 0:01:24]} 38... Rxf4 {[%clk 0:00:59.7]} 39. Kg5
{[%clk 0:01:20.9]} 39... Rf6 {[%clk 0:00:57.4]} 40. h4 {[%clk 0:01:17.2]} 40...
Be3+ {[%clk 0:00:52.1]} 41. Kh5 {[%clk 0:01:16.7]} 41... Rh6# {[%clk 0:00:51.8]}
0-1

[Event "*** SCC Grand Prix: Titled Tuesday Blitz"]
[Site "Chess.com"]
[Date "2020.09.29"]
[Round "10"]
[White "Nikithebest"]
[Black "misterlamine"]
[Result "1-0"]
[WhiteElo "2424"]
[BlackElo "2301"]
[TimeControl "180+1"]
[EndTime "11:54:22 PDT"]
[Termination "Nikithebest won by resignation"]

1. e4 {[%clk 0:03:00.9]} 1... c5 {[%clk 0:02:59.4]} 2. Nf3 {[%clk 0:03:01]} 2...
d6 {[%clk 0:02:59.7]} 3. Bb5+ {[%clk 0:03:01]} 3... Bd7 {[%clk 0:02:58.9]} 4.
Bxd7+ {[%clk 0:03:00.8]} 4... Nxd7 {[%clk 0:02:59.8]} 5. O-O {[%clk 0:03:01]}
5... g6 {[%clk 0:02:58.3]} 6. Qe2 {[%clk 0:03:01.4]} 6... Bg7 {[%clk 0:02:58.6]}
7. c3 {[%clk 0:03:01.6]} 7... e6 {[%clk 0:02:58.7]} 8. d4 {[%clk 0:03:01.1]}
8... Ne7 {[%clk 0:02:59]} 9. Rd1 {[%clk 0:02:54]} 9... Qc7 {[%clk 0:02:57.2]}
10. Bf4 {[%clk 0:02:52.8]} 10... cxd4 {[%clk 0:02:55.5]} 11. cxd4 {[%clk
0:02:50.9]} 11... e5 {[%clk 0:02:55.2]} 12. Be3 {[%clk 0:02:48.2]} 12... O-O
{[%clk 0:02:53.5]} 13. Nc3 {[%clk 0:02:48.2]} 13... f5 {[%clk 0:02:47]} 14. Ng5
{[%clk 0:02:28.5]} 14... Rf6 {[%clk 0:02:38.3]} 15. Nb5 {[%clk 0:02:26.8]} 15...
Qc6 {[%clk 0:02:31.7]} 16. Rac1 {[%clk 0:02:25]} 16... Qa6 {[%clk 0:02:28.6]}
17. Qc4+ {[%clk 0:02:20.8]} 17... Kh8 {[%clk 0:02:13]} 18. Nf7+ {[%clk 0:02:14]}
18... Rxf7 {[%clk 0:02:11.8]} 19. Qxf7 {[%clk 0:02:14.9]} 19... Qxb5 {[%clk
0:02:12.1]} 20. Qxe7 {[%clk 0:02:15.1]} 20... f4 {[%clk 0:02:09.5]} 21. Rc7
{[%clk 0:02:03]} 21... fxe3 {[%clk 0:02:08.2]} 22. fxe3 {[%clk 0:02:03]} 22...
Qe2 {[%clk 0:01:59.3]} 23. Rf1 {[%clk 0:01:56.4]} 23... Qxe3+ {[%clk 0:01:40.5]}
24. Kh1 {[%clk 0:01:53.4]} 24... Qh6 {[%clk 0:01:37.2]} 25. Qxd7 {[%clk
0:01:50.7]} 25... Rg8 {[%clk 0:01:30.6]} 26. dxe5 {[%clk 0:01:42.2]} 26... Bxe5
{[%clk 0:01:31.5]} 27. h3 {[%clk 0:01:41.8]} 27... Bg7 {[%clk 0:01:32.4]} 28.
Qxd6 {[%clk 0:01:29.1]} 28... Qh5 {[%clk 0:01:09.5]} 29. Rxb7 {[%clk 0:01:01.7]}
29... Qe2 {[%clk 0:00:58.7]} 30. Rff7 {[%clk 0:00:59]} 30... Qe1+ {[%clk
0:00:53.5]} 31. Kh2 {[%clk 0:00:59.3]} 31... Qxe4 {[%clk 0:00:51]} 32. Rxg7
{[%clk 0:00:52.6]} 32... Rxg7 {[%clk 0:00:49.2]} 33. Qf8+ {[%clk 0:00:51.6]}
33... Rg8 {[%clk 0:00:48.4]} 34. Qf6+ {[%clk 0:00:51.8]} 1-0

[Event "*** SCC Grand Prix: Titled Tuesday Blitz"]
[Site "Chess.com"]
[Date "2020.09.29"]
[Round "10"]
[White "Makswolf200817"]
[Black "SophieNikoladze"]
[Result "1-0"]
[WhiteElo "2415"]
[BlackElo "2290"]
[TimeControl "180+1"]
[EndTime "11:54:22 PDT"]
[Termination "Makswolf200817 won by resignation"]

1. d4 {[%clk 0:03:00.9]} 1... b5 {[%clk 0:02:59.4]} 2. e4 {[%clk 0:02:59.6]}
2... Bb7 {[%clk 0:02:59.8]} 3. d5 {[%clk 0:02:59.4]} 3... a6 {[%clk 0:02:58.6]}
4. f4 {[%clk 0:02:59]} 4... e6 {[%clk 0:02:56.5]} 5. Nf3 {[%clk 0:02:58.5]} 5...
exd5 {[%clk 0:02:56.2]} 6. exd5 {[%clk 0:02:58.5]} 6... Nf6 {[%clk 0:02:56.2]}
7. c4 {[%clk 0:02:58.5]} 7... Bb4+ {[%clk 0:02:53.5]} 8. Nc3 {[%clk 0:02:57.5]}
8... Qe7+ {[%clk 0:02:53]} 9. Qe2 {[%clk 0:02:56.6]} 9... bxc4 {[%clk
0:02:47.4]} 10. Qxe7+ {[%clk 0:02:55.4]} 10... Kxe7 {[%clk 0:02:46.3]} 11. Bxc4
{[%clk 0:02:49.9]} 11... Nxd5 {[%clk 0:02:44]} 12. a3 {[%clk 0:02:36.5]} 12...
Nxc3 {[%clk 0:02:37.3]} 13. axb4 {[%clk 0:02:35.6]} 13... Ne4 {[%clk 0:02:36.6]}
14. Be3 {[%clk 0:02:34.9]} 14... d5 {[%clk 0:02:35]} 15. Bd3 {[%clk 0:02:34.3]}
15... Nd7 {[%clk 0:02:34.2]} 16. Bd4 {[%clk 0:02:33.9]} 16... f6 {[%clk
0:02:32.7]} 17. O-O {[%clk 0:02:32]} 17... Kf7 {[%clk 0:02:29.9]} 18. Rfc1
{[%clk 0:02:31.4]} 18... Rhc8 {[%clk 0:02:27.5]} 19. f5 {[%clk 0:02:27.1]} 19...
c5 {[%clk 0:02:23.7]} 20. bxc5 {[%clk 0:02:22.3]} 20... Ndxc5 {[%clk 0:02:23]}
21. Bc2 {[%clk 0:02:21.8]} 21... Rc7 {[%clk 0:02:17.5]} 22. b4 {[%clk
0:02:21.6]} 22... Nd7 {[%clk 0:02:08.2]} 23. Bxe4 {[%clk 0:02:14.2]} 23... Rxc1+
{[%clk 0:02:06.4]} 24. Rxc1 {[%clk 0:02:15.1]} 24... dxe4 {[%clk 0:02:06.5]} 25.
Nd2 {[%clk 0:02:16]} 25... Bd5 {[%clk 0:02:01]} 26. Rc7 {[%clk 0:02:14.6]} 26...
Ke8 {[%clk 0:02:00.5]} 27. Kf2 {[%clk 0:02:08.2]} 27... Rb8 {[%clk 0:02:00.2]}
28. Bc3 {[%clk 0:02:03.9]} 28... Kd8 {[%clk 0:01:54.9]} 29. Ra7 {[%clk
0:02:04.3]} 29... Rb6 {[%clk 0:01:52.3]} 30. Ke3 {[%clk 0:02:02.4]} 30... Rc6
{[%clk 0:01:51.5]} 31. Kd4 {[%clk 0:02:01.7]} 31... Rd6 {[%clk 0:01:44.6]} 32.
Nxe4 {[%clk 0:02:00.3]} 32... Bxe4+ {[%clk 0:01:43.3]} 33. Kxe4 {[%clk
0:02:01.2]} 33... Kc8 {[%clk 0:01:41.6]} 34. Ra8+ {[%clk 0:01:59.1]} 34... Nb8
{[%clk 0:01:40.5]} 35. Bd4 {[%clk 0:01:57.9]} 35... Rd7 {[%clk 0:01:10.2]} 36.
Ra7 {[%clk 0:01:47.3]} 36... Nc6 {[%clk 0:01:09]} 37. Rxd7 {[%clk 0:01:46.4]}
37... Kxd7 {[%clk 0:01:08.8]} 38. Bc5 {[%clk 0:01:47.3]} 38... Ne5 {[%clk
0:01:08.5]} 39. Bf8 {[%clk 0:01:45.7]} 39... g6 {[%clk 0:01:07.8]} 40. h3 {[%clk
0:01:38.3]} 40... Kc6 {[%clk 0:01:04]} 41. Be7 {[%clk 0:01:37.9]} 41... Nd7
{[%clk 0:01:03.5]} 42. g4 {[%clk 0:01:37.8]} 42... Kb5 {[%clk 0:01:01.7]} 43.
Kd5 {[%clk 0:01:38]} 43... Nb6+ {[%clk 0:00:56.1]} 44. Ke6 {[%clk 0:01:37.8]}
44... gxf5 {[%clk 0:00:51.3]} 45. gxf5 {[%clk 0:01:37.5]} 45... Kc4 {[%clk
0:00:50.7]} 46. Kxf6 {[%clk 0:01:32.3]} 46... Nd5+ {[%clk 0:00:50.2]} 47. Kf7
{[%clk 0:01:30.4]} 47... Nxb4 {[%clk 0:00:48.8]} 48. Bxb4 {[%clk 0:01:30.4]}
48... Kxb4 {[%clk 0:00:48.2]} 49. Kg7 {[%clk 0:01:31.3]} 49... a5 {[%clk
0:00:48]} 50. f6 {[%clk 0:01:32.2]} 50... a4 {[%clk 0:00:48.3]} 51. f7 {[%clk
0:01:33.1]} 51... a3 {[%clk 0:00:48.5]} 52. f8=Q+ {[%clk 0:01:34]} 52... Kb3
{[%clk 0:00:48.5]} 1-0

[Event "*** SCC Grand Prix: Titled Tuesday Blitz"]
[Site "Chess.com"]
[Date "2020.09.29"]
[Round "10"]
[White "tteshan"]
[Black "EvgenyRomanov"]
[Result "0-1"]
[WhiteElo "2396"]
[BlackElo "2625"]
[TimeControl "180+1"]
[EndTime "11:54:38 PDT"]
[Termination "EvgenyRomanov won by resignation"]

1. d4 {[%clk 0:03:00.9]} 1... d5 {[%clk 0:02:56.9]} 2. c4 {[%clk 0:03:01.2]}
2... dxc4 {[%clk 0:02:56.6]} 3. e3 {[%clk 0:02:59.4]} 3... b5 {[%clk 0:02:55.9]}
4. a4 {[%clk 0:02:59]} 4... b4 {[%clk 0:02:55.1]} 5. Bxc4 {[%clk 0:02:52.3]}
5... e6 {[%clk 0:02:55.1]} 6. Qf3 {[%clk 0:02:41.4]} 6... c6 {[%clk 0:02:54.5]}
7. Ne2 {[%clk 0:02:41.5]} 7... Nf6 {[%clk 0:02:53.6]} 8. O-O {[%clk 0:02:41]}
8... Be7 {[%clk 0:02:53]} 9. Nd2 {[%clk 0:02:37.5]} 9... Bb7 {[%clk 0:02:43.6]}
10. b3 {[%clk 0:02:35.9]} 10... Nbd7 {[%clk 0:02:42.3]} 11. Bb2 {[%clk
0:02:32.8]} 11... O-O {[%clk 0:02:41.2]} 12. Rac1 {[%clk 0:02:31.7]} 12... Qb8
{[%clk 0:02:38.6]} 13. Qh3 {[%clk 0:02:25.1]} 13... c5 {[%clk 0:02:37.2]} 14.
Rfd1 {[%clk 0:02:19]} 14... cxd4 {[%clk 0:02:33.6]} 15. Nxd4 {[%clk 0:02:16.1]}
15... Nc5 {[%clk 0:02:33.6]} 16. N2f3 {[%clk 0:02:11.4]} 16... Nfe4 {[%clk
0:02:29.5]} 17. Ne5 {[%clk 0:01:28.9]} 17... Qxe5 {[%clk 0:02:10.5]} 18. Rc2
{[%clk 0:00:45]} 18... Qg5 {[%clk 0:02:04.6]} 19. f4 {[%clk 0:00:34.4]} 19...
Qh4 {[%clk 0:01:55.2]} 20. Qf3 {[%clk 0:00:11.6]} 20... Nc3 {[%clk 0:01:50.4]}
21. Qf1 {[%clk 0:00:11.4]} 21... Nxd1 {[%clk 0:01:46.2]} 22. Qxd1 {[%clk
0:00:12.3]} 22... Rfd8 {[%clk 0:01:44.4]} 23. Qe2 {[%clk 0:00:11.6]} 23... Ne4
{[%clk 0:01:42.4]} 24. Nxe6 {[%clk 0:00:05.9]} 24... fxe6 {[%clk 0:01:33.4]} 25.
Bxe6+ {[%clk 0:00:06.8]} 25... Kh8 {[%clk 0:01:32.7]} 26. Rc7 {[%clk 0:00:04.8]}
26... Bf6 {[%clk 0:01:14.8]} 27. Bxf6 {[%clk 0:00:04.3]} 27... Qxf6 {[%clk
0:01:14]} 28. g4 {[%clk 0:00:02.1]} 28... Qa1+ {[%clk 0:01:12.1]} 29. Kg2 {[%clk
0:00:02.1]} 29... Nc3+ {[%clk 0:01:09.8]} 0-1

[Event "*** SCC Grand Prix: Titled Tuesday Blitz"]
[Site "Chess.com"]
[Date "2020.09.29"]
[Round "10"]
[White "Ze-Pequeno"]
[Black "CM_rui"]
[Result "1-0"]
[WhiteElo "2257"]
[BlackElo "2361"]
[TimeControl "180+1"]
[EndTime "11:54:38 PDT"]
[Termination "Ze-Pequeno won by resignation"]

1. e4 {[%clk 0:02:58.9]} 1... e5 {[%clk 0:02:58.5]} 2. Nf3 {[%clk 0:02:58.6]}
2... Nc6 {[%clk 0:02:58.5]} 3. Nc3 {[%clk 0:02:59]} 3... Nf6 {[%clk 0:02:57.8]}
4. d4 {[%clk 0:02:58.9]} 4... exd4 {[%clk 0:02:57.2]} 5. Nxd4 {[%clk 0:02:59.8]}
5... d6 {[%clk 0:02:56.6]} 6. Be3 {[%clk 0:02:54.8]} 6... Be7 {[%clk 0:02:51.8]}
7. Be2 {[%clk 0:02:54.1]} 7... O-O {[%clk 0:02:50.9]} 8. O-O {[%clk 0:02:52.8]}
8... Re8 {[%clk 0:02:48.8]} 9. f4 {[%clk 0:02:47.2]} 9... Bf8 {[%clk 0:02:42.9]}
10. Bf3 {[%clk 0:02:46.7]} 10... g6 {[%clk 0:02:37.4]} 11. Qd2 {[%clk
0:02:43.4]} 11... Bg7 {[%clk 0:02:37.3]} 12. Rae1 {[%clk 0:02:42.3]} 12... Ng4
{[%clk 0:02:31.5]} 13. Bxg4 {[%clk 0:02:39.7]} 13... Bxg4 {[%clk 0:02:32.4]} 14.
f5 {[%clk 0:02:26.1]} 14... Nxd4 {[%clk 0:02:15.9]} 15. Bxd4 {[%clk 0:02:24.8]}
15... Bxd4+ {[%clk 0:02:16.5]} 16. Qxd4 {[%clk 0:02:23.9]} 16... gxf5 {[%clk
0:02:17.1]} 17. exf5 {[%clk 0:02:07.3]} 17... Qg5 {[%clk 0:02:15.5]} 18. Nd5
{[%clk 0:02:01.8]} 18... Rxe1 {[%clk 0:02:06.7]} 19. Rxe1 {[%clk 0:01:59.9]}
19... h5 {[%clk 0:01:01.3]} 20. Nf6+ {[%clk 0:01:56.6]} 20... Kh8 {[%clk
0:00:58.7]} 21. Nxg4+ {[%clk 0:01:56.3]} 21... Kh7 {[%clk 0:00:58.2]} 22. Nf6+
{[%clk 0:01:54.8]} 22... Kh6 {[%clk 0:00:58.7]} 23. Ne4 {[%clk 0:01:46.1]} 23...
Qh4 {[%clk 0:00:49.2]} 24. Qe3+ {[%clk 0:01:17.7]} 24... Kh7 {[%clk 0:00:44]}
25. g3 {[%clk 0:01:17.3]} 25... Qd8 {[%clk 0:00:39]} 26. Ng5+ {[%clk 0:01:02.5]}
26... Kg8 {[%clk 0:00:35.1]} 27. Ne4 {[%clk 0:00:56]} 27... f6 {[%clk
0:00:31.1]} 28. Qh6 {[%clk 0:00:54.3]} 28... Kf7 {[%clk 0:00:24.6]} 29. Qg6+
{[%clk 0:00:51.2]} 29... Kf8 {[%clk 0:00:20.3]} 30. Nxf6 {[%clk 0:00:50.4]} 1-0

[Event "*** SCC Grand Prix: Titled Tuesday Blitz"]
[Site "Chess.com"]
[Date "2020.09.29"]
[Round "10"]
[White "FairChess_on_YouTube"]
[Black "Zkid"]
[Result "1-0"]
[WhiteElo "2939"]
[BlackElo "2831"]
[TimeControl "180+1"]
[EndTime "11:54:39 PDT"]
[Termination "FairChess_on_YouTube won by resignation"]

1. d4 {[%clk 0:02:58.4]} 1... d5 {[%clk 0:02:56.2]} 2. Bg5 {[%clk 0:02:56.3]}
2... c6 {[%clk 0:02:55.4]} 3. e3 {[%clk 0:02:52.5]} 3... h6 {[%clk 0:02:54.8]}
4. Bh4 {[%clk 0:02:52.3]} 4... Qb6 {[%clk 0:02:54.9]} 5. Qc1 {[%clk 0:02:49.3]}
5... Bf5 {[%clk 0:02:54.5]} 6. Nf3 {[%clk 0:02:41.6]} 6... Nd7 {[%clk
0:02:53.4]} 7. c4 {[%clk 0:02:36.5]} 7... e6 {[%clk 0:02:50.6]} 8. Nc3 {[%clk
0:02:35.3]} 8... Ngf6 {[%clk 0:02:49.4]} 9. Be2 {[%clk 0:02:34.5]} 9... Be7
{[%clk 0:02:45.7]} 10. O-O {[%clk 0:02:34.2]} 10... O-O {[%clk 0:02:45.8]} 11.
c5 {[%clk 0:02:33.7]} 11... Qd8 {[%clk 0:02:43.6]} 12. b4 {[%clk 0:02:33.8]}
12... Re8 {[%clk 0:02:30.1]} 13. b5 {[%clk 0:02:19.4]} 13... e5 {[%clk
0:02:13.1]} 14. bxc6 {[%clk 0:02:12]} 14... bxc6 {[%clk 0:02:14]} 15. Bg3 {[%clk
0:01:57.1]} 15... e4 {[%clk 0:01:38]} 16. Nd2 {[%clk 0:01:56.8]} 16... Bg4
{[%clk 0:01:37.8]} 17. Ba6 {[%clk 0:01:52.1]} 17... Nh5 {[%clk 0:00:49]} 18. Bb7
{[%clk 0:01:49.3]} 18... Nxg3 {[%clk 0:00:47.9]} 19. hxg3 {[%clk 0:01:46.9]}
19... Qc7 {[%clk 0:00:47]} 20. Bxa8 {[%clk 0:01:46.1]} 20... Rxa8 {[%clk
0:00:47.9]} 21. Rb1 {[%clk 0:01:44.1]} 21... h5 {[%clk 0:00:46.3]} 22. Qb2
{[%clk 0:01:32.9]} 22... Bf6 {[%clk 0:00:41.5]} 23. Qb7 {[%clk 0:01:15.5]} 23...
Qxb7 {[%clk 0:00:39.7]} 24. Rxb7 {[%clk 0:01:16.4]} 24... Nxc5 {[%clk
0:00:40.1]} 25. Rc7 {[%clk 0:01:16.6]} 25... Rc8 {[%clk 0:00:37.9]} 26. Rxc8+
{[%clk 0:01:12.8]} 26... Bxc8 {[%clk 0:00:38.8]} 27. Nxd5 {[%clk 0:01:07.4]}
27... cxd5 {[%clk 0:00:37.5]} 28. Rc1 {[%clk 0:01:04.4]} 28... Bd8 {[%clk
0:00:26.5]} 29. Nb3 {[%clk 0:00:49]} 29... Kf8 {[%clk 0:00:25.1]} 30. Nxc5
{[%clk 0:00:46.6]} 30... Ke7 {[%clk 0:00:23.9]} 31. Nxe4 {[%clk 0:00:45.1]} 1-0

[Event "*** SCC Grand Prix: Titled Tuesday Blitz"]
[Site "Chess.com"]
[Date "2020.09.29"]
[Round "10"]
[White "Zarinur"]
[Black "OsorioFernando"]
[Result "0-1"]
[WhiteElo "2190"]
[BlackElo "2310"]
[TimeControl "180+1"]
[EndTime "11:54:45 PDT"]
[Termination "OsorioFernando won by resignation"]

1. e4 {[%clk 0:03:00.9]} 1... d5 {[%clk 0:02:59.4]} 2. exd5 {[%clk 0:03:00.3]}
2... Nf6 {[%clk 0:02:59]} 3. d4 {[%clk 0:03:00]} 3... Bg4 {[%clk 0:02:58.7]} 4.
Be2 {[%clk 0:02:54.2]} 4... Bxe2 {[%clk 0:02:53]} 5. Nxe2 {[%clk 0:02:51.4]}
5... Qxd5 {[%clk 0:02:52.1]} 6. O-O {[%clk 0:02:51]} 6... Nc6 {[%clk 0:02:49.8]}
7. h3 {[%clk 0:02:50.3]} 7... O-O-O {[%clk 0:02:47.1]} 8. Be3 {[%clk 0:02:48.6]}
8... g5 {[%clk 0:02:42.6]} 9. Nbc3 {[%clk 0:02:44.1]} 9... Qf5 {[%clk
0:02:40.7]} 10. Ng3 {[%clk 0:02:41.5]} 10... Qg6 {[%clk 0:02:40.4]} 11. Qd2
{[%clk 0:02:01.4]} 11... Nxd4 {[%clk 0:02:22.8]} 12. Bxd4 {[%clk 0:01:59.5]}
12... e5 {[%clk 0:02:22.7]} 13. Nb5 {[%clk 0:01:55.6]} 13... a6 {[%clk
0:02:10.7]} 14. Na7+ {[%clk 0:01:51.1]} 14... Kb8 {[%clk 0:02:06.1]} 15. Nc6+
{[%clk 0:01:44.6]} 15... bxc6 {[%clk 0:02:04.8]} 16. Ba7+ {[%clk 0:01:44.5]}
16... Kc8 {[%clk 0:02:02.9]} 17. Qe2 {[%clk 0:01:41.2]} 17... Kb7 {[%clk
0:01:57.1]} 18. Be3 {[%clk 0:01:38.6]} 18... Nd5 {[%clk 0:01:48]} 19. Rfd1
{[%clk 0:01:31.6]} 19... Be7 {[%clk 0:01:46.1]} 20. Qc4 {[%clk 0:01:20.5]} 20...
f5 {[%clk 0:01:42]} 21. Bc5 {[%clk 0:01:07.2]} 21... Bxc5 {[%clk 0:01:13.1]} 22.
Qxc5 {[%clk 0:01:08.1]} 22... f4 {[%clk 0:01:12.9]} 23. Ne2 {[%clk 0:01:04.2]}
23... g4 {[%clk 0:01:11.4]} 24. c4 {[%clk 0:00:54.3]} 24... gxh3 {[%clk
0:01:10.1]} 25. g3 {[%clk 0:00:54]} 25... Nb6 {[%clk 0:01:07.2]} 26. Qb4 {[%clk
0:00:45.1]} 26... Qe4 {[%clk 0:01:03.6]} 27. Kf1 {[%clk 0:00:08.6]} 27... h2
{[%clk 0:01:01.5]} 0-1

[Event "*** SCC Grand Prix: Titled Tuesday Blitz"]
[Site "Chess.com"]
[Date "2020.09.29"]
[Round "10"]
[White "Quiet_Desperation"]
[Black "rugbyclub"]
[Result "0-1"]
[WhiteElo "2010"]
[BlackElo "2163"]
[TimeControl "180+1"]
[EndTime "11:54:47 PDT"]
[Termination "rugbyclub won by resignation"]

1. e4 {[%clk 0:03:00.9]} 1... e6 {[%clk 0:02:57.5]} 2. d4 {[%clk 0:03:00.9]}
2... d5 {[%clk 0:02:51.5]} 3. Nd2 {[%clk 0:03:01.2]} 3... c5 {[%clk 0:02:49.4]}
4. exd5 {[%clk 0:03:00.2]} 4... Qxd5 {[%clk 0:02:48.6]} 5. Ngf3 {[%clk
0:03:01.1]} 5... Nc6 {[%clk 0:02:45.6]} 6. dxc5 {[%clk 0:02:58.4]} 6... Qxc5
{[%clk 0:02:45]} 7. Bd3 {[%clk 0:02:58.3]} 7... Nf6 {[%clk 0:02:44.4]} 8. O-O
{[%clk 0:02:58.4]} 8... Be7 {[%clk 0:02:40.8]} 9. Nb3 {[%clk 0:02:58.5]} 9...
Qd5 {[%clk 0:02:36.5]} 10. Qe2 {[%clk 0:02:58.4]} 10... O-O {[%clk 0:02:35.1]}
11. Rd1 {[%clk 0:02:58.3]} 11... Qh5 {[%clk 0:02:34.6]} 12. h3 {[%clk
0:02:56.9]} 12... Nd5 {[%clk 0:02:23.9]} 13. a3 {[%clk 0:02:53.4]} 13... a5
{[%clk 0:02:19.6]} 14. c4 {[%clk 0:02:47.5]} 14... Nf6 {[%clk 0:02:09.9]} 15.
Bf4 {[%clk 0:02:28.5]} 15... a4 {[%clk 0:02:08]} 16. Nbd2 {[%clk 0:02:22.3]}
16... b6 {[%clk 0:01:57.3]} 17. Ne4 {[%clk 0:02:17.9]} 17... Bb7 {[%clk
0:01:40.4]} 18. Ng3 {[%clk 0:01:55.9]} 18... Qc5 {[%clk 0:01:28.2]} 19. Be3
{[%clk 0:01:55.2]} 19... Qa5 {[%clk 0:01:25]} 20. Bd2 {[%clk 0:01:44.2]} 20...
Qc5 {[%clk 0:01:24.1]} 21. Bc3 {[%clk 0:01:34.1]} 21... Rfd8 {[%clk 0:01:12]}
22. Ne4 {[%clk 0:01:32.2]} 22... Nxe4 {[%clk 0:01:10.4]} 23. Qxe4 {[%clk
0:01:32]} 23... g6 {[%clk 0:01:08.4]} 24. Qf4 {[%clk 0:01:28.2]} 24... Rd7
{[%clk 0:00:51]} 25. Qh6 {[%clk 0:01:15.6]} 25... Bf8 {[%clk 0:00:45.2]} 26. Qh4
{[%clk 0:01:14.4]} 26... Rad8 {[%clk 0:00:40.6]} 27. Qf6 {[%clk 0:01:09.6]}
27... e5 {[%clk 0:00:34.3]} 28. Nxe5 {[%clk 0:00:41.3]} 28... Bg7 {[%clk
0:00:18.5]} 29. Qxg7+ {[%clk 0:00:40.9]} 29... Kxg7 {[%clk 0:00:17.1]} 30. Nxd7+
{[%clk 0:00:40.6]} 0-1

[Event "*** SCC Grand Prix: Titled Tuesday Blitz"]
[Site "Chess.com"]
[Date "2020.09.29"]
[Round "10"]
[White "anon481216"]
[Black "chessdjw"]
[Result "0-1"]
[WhiteElo "2422"]
[BlackElo "2625"]
[TimeControl "180+1"]
[EndTime "11:54:48 PDT"]
[Termination "chessdjw won by resignation"]

1. d4 {[%clk 0:03:00.9]} 1... Nf6 {[%clk 0:02:58.5]} 2. c4 {[%clk 0:03:01.1]}
2... g6 {[%clk 0:02:59.1]} 3. Nc3 {[%clk 0:02:59.3]} 3... d5 {[%clk 0:02:59.7]}
4. Bg5 {[%clk 0:02:58]} 4... Bg7 {[%clk 0:02:59.1]} 5. Bxf6 {[%clk 0:02:57.2]}
5... Bxf6 {[%clk 0:03:00]} 6. cxd5 {[%clk 0:02:56.7]} 6... c5 {[%clk 0:02:59.9]}
7. dxc6 {[%clk 0:02:53.6]} 7... Bxd4 {[%clk 0:02:56.4]} 8. e3 {[%clk 0:02:43.9]}
8... Bxc3+ {[%clk 0:02:55.7]} 9. bxc3 {[%clk 0:02:43.7]} 9... Qxd1+ {[%clk
0:02:56]} 10. Rxd1 {[%clk 0:02:42.8]} 10... Nxc6 {[%clk 0:02:56.9]} 11. Bb5
{[%clk 0:02:40.8]} 11... Bd7 {[%clk 0:02:57.1]} 12. Nf3 {[%clk 0:02:40.6]} 12...
f6 {[%clk 0:02:33.5]} 13. Nd4 {[%clk 0:02:23.6]} 13... Ne5 {[%clk 0:02:24.8]}
14. Bxd7+ {[%clk 0:02:11.2]} 14... Nxd7 {[%clk 0:02:25.7]} 15. Nb5 {[%clk
0:02:05.9]} 15... Rc8 {[%clk 0:02:18.9]} 16. Nxa7 {[%clk 0:02:05.2]} 16... Rxc3
{[%clk 0:02:18.9]} 17. Nb5 {[%clk 0:02:03.9]} 17... Rc2 {[%clk 0:02:12.3]} 18.
Rd2 {[%clk 0:02:02.1]} 18... Rc1+ {[%clk 0:02:06.4]} 19. Rd1 {[%clk 0:02:01.5]}
19... Rxd1+ {[%clk 0:02:03.5]} 20. Kxd1 {[%clk 0:02:01.2]} 20... Kf7 {[%clk
0:02:04.1]} 21. Kc2 {[%clk 0:01:59.5]} 21... Rc8+ {[%clk 0:02:02.7]} 22. Kb1
{[%clk 0:01:51.3]} 22... Rc5 {[%clk 0:02:00.7]} 23. Nd4 {[%clk 0:01:50.5]} 23...
Ne5 {[%clk 0:02:00.5]} 24. Rd1 {[%clk 0:01:40.4]} 24... Ng4 {[%clk 0:01:54.7]}
25. Rd2 {[%clk 0:01:37.8]} 25... Nxh2 {[%clk 0:01:51.6]} 26. f3 {[%clk
0:01:36.9]} 26... Nf1 {[%clk 0:01:51.5]} 27. Rd3 {[%clk 0:01:32]} 27... Ng3
{[%clk 0:01:36.8]} 28. e4 {[%clk 0:01:30]} 28... h5 {[%clk 0:01:35]} 29. Rb3
{[%clk 0:01:29.3]} 29... Rc7 {[%clk 0:01:34.1]} 30. Rb6 {[%clk 0:01:25.2]} 30...
Rd7 {[%clk 0:01:26.3]} 31. Ne6 {[%clk 0:01:17]} 31... Rd2 {[%clk 0:01:08.7]} 32.
Nf4 {[%clk 0:01:14.6]} 32... h4 {[%clk 0:01:01.9]} 33. Rxb7 {[%clk 0:01:09.3]}
33... g5 {[%clk 0:00:59.4]} 34. Nd5 {[%clk 0:01:08.4]} 34... Rxg2 {[%clk
0:00:59.8]} 35. Rxe7+ {[%clk 0:01:07.6]} 35... Kg6 {[%clk 0:00:59.9]} 36. Rc7
{[%clk 0:00:52.7]} 36... h3 {[%clk 0:00:55.7]} 37. Ne7+ {[%clk 0:00:52.3]} 37...
Kh5 {[%clk 0:00:55.6]} 38. Nf5 {[%clk 0:00:47.2]} 38... Nxf5 {[%clk 0:00:52.3]}
39. exf5 {[%clk 0:00:47.2]} 39... Kh4 {[%clk 0:00:50.3]} 0-1